bitfinex/quotes_BTCUSD_20240819
["timestamp","ask_amount","ask_price","bid_price","bid_amount"]
[1724029646201,0.000823,58396.0,58395.0,2.0027243]
[1724029646405,0.000523,58396.0,58395.0,2.0027243]
[1724029649225,0.000523,58396.0,58395.0,2.2424703]
[1724029649429,0.000523,58396.0,58395.0,3.29181684]
[1724029649635,0.000523,58396.0,58395.0,3.04807084]
[1724029650694,0.000523,58396.0,58395.0,3.04707084]
[1724029652602,0.000523,58396.0,58395.0,3.04907084]
[1724029652842,0.000523,58396.0,58395.0,3.04707084]
[1724029653100,0.000523,58396.0,58395.0,3.04907084]
[1724029653616,0.000523,58396.0,58395.0,3.05107084]
[1724029653978,0.000523,58396.0,58395.0,3.05207084]
[1724029654355,0.000523,58396.0,58395.0,3.29181684]
[1724029655704,0.000523,58396.0,58395.0,2.75477084]
[1724029655882,0.000523,58396.0,58395.0,2.0027243]
[1724029656138,0.000523,58396.0,58395.0,2.2424703]
[1724029657308,0.000523,58396.0,58395.0,2.4822163]
[1724029657648,0.000523,58396.0,58395.0,2.5822163]
[1724029658271,0.000523,58396.0,58395.0,2.75377084]
[1724029659449,0.000523,58396.0,58395.0,2.99451684]
[1724029660886,0.000523,58396.0,58395.0,2.99851684]
[1724029664152,0.000523,58396.0,58395.0,3.28956527]
[1724029664362,0.05114831,58422.0,58421.0,0.001]
[1724029664566,0.000822,58423.0,58422.0,0.445252]
[1724029664770,0.000822,58423.0,58422.0,0.784887]
[1724029664975,0.000822,58423.0,58422.0,1.024522]
[1724029665180,0.000822,58423.0,58422.0,1.19607654]
[1724029665387,0.000822,58423.0,58422.0,1.19907654]
[1724029665590,0.000822,58423.0,58422.0,3.00241154]
[1724029665783,0.000822,58423.0,58422.0,3.00041154]
[1724029666075,0.000822,58423.0,58422.0,3.00241154]
[1724029666286,0.000822,58423.0,58422.0,3.05055769]
[1724029666606,0.000822,58423.0,58422.0,3.05255769]
[1724029666756,0.000822,58423.0,58422.0,3.06298808]
[1724029666959,0.000822,58423.0,58422.0,3.35628808]
[1724029667190,0.000822,58423.0,58422.0,3.30414193]
[1724029667405,0.000822,58423.0,58422.0,3.30614193]
[1724029667811,0.000822,58423.0,58422.0,3.30814193]
[1724029669192,0.000822,58423.0,58422.0,3.54777693]
[1724029669404,0.000822,58423.0,58422.0,3.57077693]
[1724029669839,0.000822,58431.0,58430.0,1.084209]
[1724029670046,0.000822,58431.0,58430.0,1.79886354]
[1724029670259,0.000822,58431.0,58430.0,2.06146554]
[1724029670482,0.000822,58431.0,58430.0,3.32186354]
[1724029671770,0.000822,58431.0,58430.0,3.33237285]
[1724029672455,0.000822,58431.0,58430.0,3.57197485]
[1724029672998,0.000822,58438.0,58437.0,1.224783]
[1724029673177,0.000822,58438.0,58437.0,2.05221154]
[1724029673721,0.000822,58438.0,58437.0,1.81263754]
[1724029673942,0.000822,58438.0,58437.0,3.31263754]
[1724029675394,0.000822,58438.0,58437.0,3.32316549]
[1724029675715,0.000822,58447.0,58446.0,1.166816]
[1724029675916,0.000822,58447.0,58446.0,2.06030754]
[1724029676286,0.00823,58455.0,58454.0,0.840264]
[1724029676481,0.00823,58455.0,58454.0,1.55411854]
[1724029676879,0.00823,58455.0,58454.0,3.29562254]
[1724029677243,0.00823,58455.0,58454.0,3.29762254]
[1724029678566,0.00823,58455.0,58454.0,3.30789309]
[1724029679141,0.000822,58468.0,58465.0,1.281006]
[1724029679405,0.000822,58468.0,58465.0,1.69401954]
[1724029679673,0.000822,58468.0,58465.0,1.55056054]
[1724029679893,0.000822,58468.0,58465.0,3.29401954]
[1724029680696,0.000822,58468.0,58465.0,3.29201954]
[1724029680917,0.000822,58468.0,58465.0,3.30217005]
[1724029681212,0.000822,58468.0,58465.0,3.30017005]
[1724029681422,0.000822,58468.0,58465.0,2.62081105]
[1724029682208,0.000822,58468.0,58465.0,2.62281105]
[1724029682476,0.000822,58468.0,58465.0,3.00361105]
[1724029682746,0.000822,58468.0,58465.0,2.99861105]
[1724029682971,0.000822,58468.0,58465.0,2.46585205]
[1724029683200,0.065822,58468.0,58465.0,1.720729]
[1724029683418,0.065822,58468.0,58465.0,1.860188]
[1724029684015,0.065822,58468.0,58465.0,2.099647]
[1724029684205,0.065822,58468.0,58465.0,1.860188]
[1724029684534,0.000822,58468.0,58465.0,2.51066054]
[1724029684953,0.000822,58468.0,58465.0,2.74906054]
[1724029685364,0.000822,58468.0,58465.0,2.75006054]
[1724029686420,0.000822,58468.0,58465.0,2.75206054]
[1724029686630,0.000822,58468.0,58465.0,2.98951954]
[1724029687185,0.000822,58468.0,58465.0,2.99151954]
[1724029687419,0.000822,58468.0,58465.0,2.99351954]
[1724029689287,0.000822,58468.0,58467.0,0.844078]
[1724029689405,0.000821,58481.0,58480.0,0.240398]
[1724029689601,0.000821,58481.0,58480.0,1.31866849]
[1724029689917,0.000821,58481.0,58480.0,1.80046449]
[1724029690111,0.000821,58481.0,58480.0,3.29704554]
[1724029690535,0.000821,58481.0,58480.0,3.29904554]
[1724029690743,0.000821,58481.0,58480.0,3.29504554]
[1724029690910,0.000821,58481.0,58480.0,3.29404554]
[1724029691121,0.000821,58481.0,58480.0,2.13165154]
[1724029691297,0.000821,58481.0,58480.0,0.101]
[1724029691479,0.000821,58481.0,58480.0,0.001]
[1724029691682,0.07550648,58481.0,58480.0,0.001]
[1724029691883,0.067521,58481.0,58480.0,0.001]
[1724029692932,0.067521,58481.0,58477.0,1.619704]
[1724029692933,0.127,58480.0,58477.0,0.001]
[1724029693106,0.127,58480.0,58448.0,0.004]
[1724029693107,0.0603,58467.0,58466.0,0.001]
[1724029693303,0.127,58467.0,58466.0,0.001]
[1724029693505,0.246725,58467.0,58466.0,0.001]
[1724029693708,0.127,58467.0,58466.0,0.001]
[1724029693986,0.239398,58480.0,58479.0,0.001]
[1724029694219,0.598495,58480.0,58479.0,0.001]
[1724029694775,0.486097,58480.0,58479.0,0.001]
[1724029696840,0.246699,58480.0,58479.0,0.001]
[1724029697041,0.127,58480.0,58479.0,0.001]
[1724029697467,0.127,58480.0,58479.0,0.120701]
[1724029697468,0.0667,58480.0,58479.0,0.120701]
[1724029697665,0.0667,58480.0,58479.0,0.360103]
[1724029697873,0.0667,58480.0,58479.0,1.860103]
[1724029698074,0.0703,58484.0,58480.0,0.360097]
[1724029698474,0.01,58484.0,58480.0,0.599495]
[1724029699118,0.01,58484.0,58480.0,0.77104954]
[1724029699324,0.01,58484.0,58480.0,1.01044754]
[1724029699771,0.01,58484.0,58480.0,1.43744554]
[1724029699981,0.01,58484.0,58480.0,1.50204554]
[1724029700192,0.01,58484.0,58483.0,0.003]
[1724029700394,0.01,58484.0,58483.0,1.34080504]
[1724029700604,0.01,58484.0,58483.0,1.44080504]
[1724029701456,0.01,58484.0,58483.0,1.44280504]
[1724029701661,0.00822,58490.0,58489.0,0.841763]
[1724029701876,0.00822,58490.0,58489.0,1.50187854]
[1724029702305,0.00822,58490.0,58489.0,2.76051754]
[1724029702704,0.00822,58490.0,58489.0,2.76251754]
[1724029702924,0.00822,58490.0,58489.0,2.76451754]
[1724029703966,0.00822,58490.0,58489.0,2.69491754]
[1724029704391,0.00822,58490.0,58489.0,1.960041]
[1724029704616,0.00822,58490.0,58489.0,1.97037109]
[1724029704813,0.00822,58490.0,58489.0,2.20973209]
[1724029705041,0.00822,58490.0,58489.0,2.69744763]
[1724029705245,0.00822,58490.0,58489.0,2.38128663]
[1724029705872,0.00822,58490.0,58489.0,2.98774763]
[1724029706076,0.00822,58490.0,58489.0,3.12704763]
[1724029706862,0.00822,58490.0,58489.0,3.13104763]
[1724029708006,0.00822,58490.0,58489.0,2.45808663]
[1724029708412,0.00822,58490.0,58489.0,2.38128663]
[1724029709952,0.00822,58490.0,58489.0,2.62064763]
[1724029710175,0.00822,58490.0,58489.0,3.07024763]
[1724029710398,0.00822,58490.0,58489.0,3.40190863]
[1724029710399,0.00066502,58490.0,58489.0,3.40190863]
[1724029710606,0.00040951,58499.0,58498.0,1.082958]
[1724029710819,0.00040951,58499.0,58498.0,1.74063654]
[1724029710993,0.00040951,58499.0,58498.0,1.76363654]
[1724029711229,0.00040951,58499.0,58498.0,3.26363654]
[1724029711834,0.00822,58506.0,58505.0,0.843532]
[1724029712091,0.00322,58506.0,58505.0,1.19518654]
[1724029712527,0.00322,58506.0,58505.0,1.43048154]
[1724029712809,0.00322,58506.0,58505.0,2.69018654]
[1724029713475,0.00322,58506.0,58505.0,3.13485464]
[1724029713903,0.00322,58506.0,58505.0,3.37414964]
[1724029714110,0.00322,58506.0,58505.0,3.13485464]
[1724029714325,0.00322,58506.0,58505.0,3.13085464]
[1724029714635,0.00322,58506.0,58505.0,3.13485464]
[1724029714843,0.00322,58506.0,58505.0,3.13085464]
[1724029715040,0.00322,58506.0,58505.0,2.62065464]
[1724029716104,0.06352,58506.0,58505.0,1.859942]
[1724029716320,0.00322,58506.0,58505.0,1.859942]
[1724029716534,0.00322,58506.0,58505.0,2.099237]
[1724029716760,0.00322,58506.0,58505.0,2.10957965]
[1724029716965,0.00322,58506.0,58505.0,2.28113419]
[1724029717194,0.00322,58506.0,58505.0,2.04183919]
[1724029717631,0.00322,58506.0,58505.0,1.73189165]
[1724029717845,0.00322,58506.0,58505.0,0.11224465]
[1724029718263,0.00322,58506.0,58505.0,1.61224465]
[1724029718487,0.00322,58506.0,58505.0,2.21048165]
[1724029719551,0.00322,58506.0,58505.0,2.38203619]
[1724029719761,0.00322,58506.0,58505.0,3.28872619]
[1724029719968,0.00322,58506.0,58505.0,3.04943119]
[1724029720182,0.00322,58506.0,58505.0,3.05043119]
[1724029721853,0.00322,58506.0,58505.0,3.28972619]
[1724029722064,0.00322,58506.0,58505.0,3.37162619]
[1724029722335,0.00322,58506.0,58505.0,3.39862619]
[1724029722545,0.00322,58506.0,58505.0,3.63792119]
[1724029722757,0.00322,58506.0,58505.0,3.39862619]
[1724029723187,0.00082,58520.0,58513.0,1.530183]
[1724029723408,0.00082,58520.0,58513.0,1.86303754]
[1724029723834,0.00082,58520.0,58513.0,3.36303754]
[1724029724560,0.00082,58520.0,58513.0,3.62530054]
[1724029724784,0.00082,58520.0,58513.0,3.38603754]
[1724029725212,0.00082,58520.0,58513.0,3.36303754]
[1724029725610,0.00082,58520.0,58513.0,3.37313084]
[1724029726270,0.00082,58520.0,58513.0,3.63539384]
[1724029726474,0.00082,58520.0,58513.0,3.39613084]
[1724029727328,0.00082,58520.0,58513.0,3.63539384]
[1724029727751,0.00082,58520.0,58513.0,3.39613084]
[1724029728391,0.00082,58520.0,58513.0,3.63539384]
[1724029728840,0.00822,58527.0,58524.0,1.593381]
[1724029729065,0.00822,58527.0,58524.0,1.86493554]
[1724029729514,0.00822,58527.0,58524.0,3.36493554]
[1724029729940,0.00822,58527.0,58524.0,3.30383554]
[1724029730790,0.00822,58527.0,58524.0,3.31291541]
[1724029731251,0.00822,58527.0,58524.0,2.98899741]
[1724029731655,0.00822,58527.0,58524.0,2.99099741]
[1724029732345,0.00822,58527.0,58524.0,2.98699741]
[1724029736440,0.00822,58527.0,58524.0,2.38067941]
[1724029736655,0.13242,58525.0,58524.0,0.001]
[1724029736866,0.252027,58525.0,58524.0,0.001]
[1724029737484,0.13242,58525.0,58524.0,0.001]
[1724029737876,0.13242,58525.0,58524.0,0.120609]
[1724029738298,0.13242,58525.0,58524.0,0.359827]
[1724029738506,0.00822,58525.0,58524.0,0.29216354]
[1724029738714,0.00822,58525.0,58524.0,0.77059954]
[1724029738919,0.00822,58525.0,58524.0,0.120609]
[1724029739946,0.00822,58525.0,58524.0,0.359827]
[1724029740157,0.00822,58525.0,58524.0,0.001]
[1724029740364,0.13002,58525.0,58523.0,0.001]
[1724029740571,0.1218,58524.0,58523.0,0.001]
[1724029740832,0.480627,58524.0,58523.0,0.001]
[1724029741036,0.480627,58524.0,58518.0,0.001]
[1724029741037,0.1218,58519.0,58518.0,0.001]
[1724029741433,0.241419,58519.0,58518.0,0.001]
[1724029741638,0.719895,58519.0,58518.0,0.001]
[1724029741839,0.719895,58519.0,58495.0,0.0698]
[1724029741840,0.0606,58514.0,58513.0,0.001]
[1724029742041,0.00822,58525.0,58508.0,0.120641]
[1724029742042,0.1218,58509.0,58508.0,0.120641]
[1724029742251,0.239251,58516.0,58508.0,0.17255454]
[1724029742252,0.0606,58516.0,58508.0,0.17255454]
[1724029742441,0.0612,58523.0,58522.0,0.120613]
[1724029742578,0.0612,58523.0,58522.0,0.001]
[1724029742982,0.1218,58523.0,58522.0,0.001]
[1724029743189,0.241411,58523.0,58522.0,0.001]
[1724029743407,0.1218,58523.0,58522.0,0.001]
[1724029747280,0.00822,58525.0,58524.0,0.120609]
[1724029747520,0.00822,58525.0,58524.0,0.359827]
[1724029747978,0.00822,58525.0,58524.0,2.03138154]
[1724029748178,0.00822,58525.0,58524.0,2.27059954]
[1724029748762,0.00822,58525.0,58524.0,2.04191971]
[1724029749023,0.00822,58525.0,58524.0,2.36073771]
[1724029749229,0.00822,58525.0,58524.0,2.69995571]
[1724029749436,0.00822,58525.0,58524.0,2.46073771]
[1724029749676,0.00822,58525.0,58524.0,1.63114717]
[1724029749883,0.191327,58525.0,58524.0,0.001]
[1724029750531,0.07172,58525.0,58524.0,0.001]
[1724029751259,0.13232,58525.0,58521.0,0.001]
[1724029751462,0.358839,58522.0,58521.0,0.001]
[1724029751672,0.419445,58521.0,58520.0,0.001]
[1724029751873,0.598085,58520.0,58519.0,0.001]
[1724029752294,0.358851,58520.0,58519.0,0.001]
[1724029752494,0.119617,58520.0,58519.0,0.001]
[1724029752895,0.119619,58519.0,58518.0,0.001]
[1724029753096,0.119623,58517.0,58516.0,0.001]
[1724029753321,0.175823,58517.0,58516.0,0.001]
[1724029753588,0.415069,58517.0,58516.0,0.001]
[1724029754874,0.175823,58517.0,58516.0,0.001]
[1724029755251,0.415069,58517.0,58516.0,0.001]
[1724029756075,0.415069,58517.0,58516.0,0.00141144]
[1724029756678,0.654315,58517.0,58516.0,0.00141144]
[1724029757525,0.415069,58517.0,58516.0,0.00141144]
[1724029760668,0.5107136,58517.0,58516.0,0.00041144]
[1724029760912,0.91426954,58517.0,58516.0,0.00041144]
[1724029761192,0.719715,58517.0,58516.0,0.00041144]
[1724029761441,0.480469,58517.0,58516.0,0.00141144]
[1724029761638,0.719715,58517.0,58516.0,0.00141144]
[1724029762116,0.480469,58517.0,58516.0,0.00141144]
[1724029762666,0.719715,58517.0,58516.0,0.00141144]
[1724029763780,0.719715,58517.0,58516.0,0.00041144]
[1724029764001,0.958961,58517.0,58516.0,0.00041144]
[1724029764430,1.15351554,58517.0,58516.0,0.00041144]
[1724029765269,1.23011734,58517.0,58516.0,0.00041144]
[1724029765486,1.0355628,58517.0,58516.0,0.00041144]
[1724029765688,0.958961,58517.0,58516.0,0.00041144]
[1724029765913,1.01002743,58517.0,58516.0,0.00041144]
[1724029766127,1.18158197,58517.0,58516.0,0.00041144]
[1724029766361,1.20458197,58517.0,58516.0,0.00041144]
[1724029766574,1.23011734,58517.0,58516.0,0.00041144]
[1724029766781,1.23093734,58517.0,58516.0,0.00041144]
[1724029766984,1.15433554,58517.0,58516.0,0.00041144]
[1724029767205,1.20539352,58517.0,58516.0,0.00041144]
[1724029768211,1.15433554,58517.0,58516.0,0.00041144]
[1724029768623,0.89208954,58517.0,58516.0,0.00041144]
[1724029768850,0.89208954,58517.0,58516.0,0.00141144]
[1724029768851,0.185843,58517.0,58516.0,0.00141144]
[1724029769872,0.425089,58517.0,58516.0,0.00141144]
[1724029770966,0.598935,58517.0,58516.0,0.00141144]
[1724029772217,0.838181,58517.0,58516.0,0.00041144]
[1724029772394,0.9308798,58517.0,58516.0,0.00041144]
[1724029772600,0.9870798,58517.0,58516.0,0.00041144]
[1724029772807,1.22043434,58517.0,58516.0,0.00041144]
[1724029776398,1.27149232,58517.0,58516.0,0.00041144]
[1724029777845,1.32003614,58517.0,58516.0,0.00041144]
[1724029778460,1.33920462,58517.0,58516.0,0.00041144]
[1724029778663,1.44134861,58517.0,58516.0,0.00041144]
[1724029778900,1.24343434,58517.0,58516.0,0.00041144]
[1724029779106,1.24443434,58517.0,58516.0,0.00041144]
[1724029779310,1.3392696,58517.0,58516.0,0.00041144]
[1724029779736,1.75107014,58517.0,58516.0,0.00041144]
[1724029779936,1.75107014,58517.0,58516.0,3e-08]
[1724029779937,1.75307014,58517.0,58516.0,3e-08]
[1724029780141,1.75072605,58517.0,58516.0,3e-08]
[1724029780344,1.197543,58515.0,58514.0,0.000902]
[1724029780563,1.57828751,58515.0,58514.0,0.000902]
[1724029780722,1.58028751,58515.0,58514.0,0.000902]
[1724029781195,1.75184205,58515.0,58514.0,0.000902]
[1724029781323,1.490891,58507.0,58506.0,0.000902]
[1724029781522,1.85893671,58507.0,58506.0,0.000902]
[1724029781738,2.10101103,58507.0,58506.0,0.000902]
[1724029781945,1.35894851,58507.0,58506.0,0.000902]
[1724029782141,1.24744473,58507.0,58506.0,0.000902]
[1724029782349,1.14749151,58507.0,58506.0,0.000902]
[1724029782550,1.05822354,58507.0,58506.0,0.000902]
[1724029782963,0.95596151,58507.0,58506.0,0.000902]
[1724029783159,1.10175734,58507.0,58506.0,0.000902]
[1724029783358,1.31075475,58507.0,58506.0,0.000902]
[1724029783923,1.79717972,58507.0,58506.0,0.000902]
[1724029784234,1.88177972,58507.0,58506.0,0.000902]
[1724029784995,1.88277972,58507.0,58506.0,0.000902]
[1724029785200,2.05776425,58507.0,58506.0,0.000902]
[1724029785440,2.05476425,58507.0,58506.0,0.000902]
[1724029785646,1.94659888,58507.0,58506.0,0.000902]
[1724029785842,2.04865735,58507.0,58506.0,0.000902]
[1724029786049,2.20204062,58507.0,58506.0,0.000902]
[1724029786247,2.04865735,58507.0,58506.0,0.000902]
[1724029786800,0.11968,58489.0,58488.0,0.078304]
[1724029787002,0.359041,58489.0,58488.0,0.078304]
[1724029787410,0.11968,58489.0,58488.0,0.078304]
[1724029787622,0.359041,58489.0,58488.0,0.078304]
[1724029788459,0.119686,58486.0,58485.0,1.5608]
[1724029788875,0.359059,58486.0,58485.0,1.5508]
[1724029789101,0.359059,58486.0,58485.0,1.49]
[1724029789305,0.119697,58481.0,58474.0,0.0656]
[1724029789517,0.119706,58477.0,58474.0,0.0656]
[1724029789723,0.239404,58479.0,58475.0,0.0755]
[1724029789933,0.119704,58478.0,58475.0,1.5755]
[1724029790152,0.1197,58480.0,58475.0,1.695208]
[1724029790321,0.119687,58486.0,58480.0,0.119698]
[1724029790553,0.239369,58487.0,58475.0,1.739416]
[1724029790554,0.119689,58485.0,58482.0,0.0824]
[1724029790993,0.239341,58494.0,58482.0,0.0824]
[1724029790994,0.23935,58492.0,58482.0,0.0824]
[1724029791177,0.16048941,58498.0,58487.0,0.0621]
[1724029791178,0.0510947,58497.0,58487.0,0.0621]
[1724029791380,0.0510947,58497.0,58494.0,0.0771]
[1724029791533,0.119664,58497.0,58495.0,1.5]
[1724029791956,0.239337,58495.0,58481.0,0.239391]
[1724029792178,0.11968,58490.0,58486.0,0.0771]
[1724029792519,0.0656,58500.0,58488.0,0.0621]
[1724029792757,0.119679,58490.0,58488.0,0.0621]
[1724029792955,0.359041,58489.0,58488.0,0.0621]
[1724029793206,0.598422,58487.0,58486.0,0.0771]
[1724029795434,0.119681,58489.0,58486.0,0.0771]
[1724029795834,0.119684,58487.0,58486.0,0.0771]
[1724029796044,0.239359,58490.0,58486.0,0.0771]
[1724029796478,0.239355,58491.0,58486.0,0.0771]
[1724029796709,0.119681,58489.0,58486.0,0.0771]
[1724029796860,0.359033,58491.0,58486.0,0.0771]
[1724029797065,0.119674,58492.0,58486.0,0.196786]
[1724029797268,0.119677,58491.0,58486.0,0.0771]
[1724029797468,0.119678,58490.0,58486.0,0.0771]
[1724029797645,0.119681,58489.0,58486.0,0.0771]
[1724029798272,0.359053,58487.0,58486.0,0.0771]
[1724029798475,0.359059,58486.0,58485.0,0.000902]
[1724029798801,0.598432,58486.0,58485.0,0.000902]
[1724029799404,0.896105,58486.0,58485.0,0.000902]
[1724029800425,0.598432,58486.0,58485.0,0.000902]
[1724029800637,0.837805,58486.0,58485.0,0.000902]
[1724029801008,1.11827601,58486.0,58485.0,0.000902]
[1724029801181,1.03235954,58486.0,58485.0,0.000902]
[1724029801523,0.598432,58486.0,58485.0,0.000902]
[1724029803551,0.76998654,58486.0,58485.0,0.000902]
[1724029803755,1.09065954,58486.0,58485.0,0.000902]
[1724029804295,1.7381364,58486.0,58485.0,0.000902]
[1724029804519,1.69586987,58486.0,58485.0,0.000902]
[1724029804715,1.90503031,58486.0,58485.0,0.000902]
[1724029805479,1.90498435,58486.0,58485.0,0.000902]
[1724029805779,1.90498435,58486.0,58485.0,7e-08]
[1724029805780,1.97280281,58486.0,58485.0,7e-08]
[1724029805976,1.9984007,58486.0,58485.0,7e-08]
[1724029806501,1.97277245,58486.0,58485.0,7e-08]
[1724029806708,1.64254595,58486.0,58485.0,7e-08]
[1724029806868,1.63053455,58486.0,58485.0,7e-08]
[1724029807064,1.54041455,58486.0,58485.0,7e-08]
[1724029807363,1.77978755,58486.0,58485.0,7e-08]
[1724029807566,1.85635151,58486.0,58485.0,7e-08]
[1724029807920,1.97180318,58486.0,58485.0,7e-08]
[1724029808121,1.77978755,58486.0,58485.0,7e-08]
[1724029808480,1.85636305,58486.0,58485.0,7e-08]
[1724029808808,1.77978755,58486.0,58485.0,7e-08]
[1724029809294,1.86975808,58486.0,58485.0,7e-08]
[1724029809477,1.77978755,58486.0,58485.0,7e-08]
[1724029809674,2.02793644,58486.0,58485.0,7e-08]
[1724029809851,1.95134209,58486.0,58485.0,7e-08]
[1724029810083,2.04068126,58486.0,58485.0,7e-08]
[1724029810451,2.14279039,58486.0,58485.0,7e-08]
[1724029810924,1.95134209,58486.0,58485.0,7e-08]
[1724029811533,2.02788492,58486.0,58485.0,7e-08]
[1724029811760,2.28546407,58486.0,58485.0,7e-08]
[1724029811962,1.195819,58471.0,58470.0,0.000902]
[1724029812166,1.36737354,58471.0,58470.0,0.000902]
[1724029812573,1.39037354,58471.0,58470.0,0.000902]
[1724029816277,1.62980754,58471.0,58470.0,0.000902]
[1724029816517,1.78473192,58471.0,58470.0,0.000902]
[1724029816739,2.05628646,58471.0,58470.0,0.000902]
[1724029816908,2.13275703,58471.0,58470.0,0.000902]
[1724029817108,2.13173381,58471.0,58470.0,0.000902]
[1724029817305,2.26118477,58471.0,58470.0,0.000902]
[1724029817544,2.47513485,58471.0,58470.0,0.000902]
[1724029817893,2.37416781,58471.0,58470.0,0.000902]
[1724029818957,2.38432785,58471.0,58470.0,0.000902]
[1724029819345,1.95506174,58471.0,58470.0,0.000902]
[1724029819550,1.95602793,58471.0,58470.0,0.000902]
[1724029820652,2.19546193,58471.0,58470.0,0.000902]
[1724029820860,2.19646193,58471.0,58470.0,0.000902]
[1724029821056,2.20046193,58471.0,58470.0,0.000902]
[1724029821250,2.61145047,58471.0,58470.0,7e-08]
[1724029821658,2.81145047,58471.0,58470.0,7e-08]
[1724029822664,2.63989593,58471.0,58470.0,7e-08]
[1724029823930,1.676928,58456.0,58455.0,0.0009031]
[1724029824172,1.97148254,58456.0,58455.0,0.0009031]
[1724029824381,2.06404831,58456.0,58455.0,0.0009031]
[1724029824623,2.23560285,58456.0,58455.0,0.0009031]
[1724029824962,2.23660285,58456.0,58455.0,0.0009031]
[1724029825163,2.47709885,58456.0,58455.0,0.0009031]
[1724029825444,2.53539885,58456.0,58455.0,0.0009031]
[1724029826298,1.322409,58448.0,58447.0,0.009042]
[1724029826504,2.00816354,58448.0,58447.0,0.009042]
[1724029826707,2.10066427,58448.0,58447.0,0.009042]
[1724029826927,2.52729918,58448.0,58447.0,0.009042]
[1724029827132,2.16954915,58448.0,58447.0,0.009042]
[1724029827333,2.02616354,58448.0,58447.0,0.009042]
[1724029827542,2.30061197,58448.0,58447.0,0.009042]
[1724029827741,2.30461197,58448.0,58447.0,0.009042]
[1724029827969,2.35149685,58448.0,58447.0,0.009042]
[1724029828468,2.18190595,58448.0,58447.0,0.009042]
[1724029828682,2.04057065,58448.0,58447.0,0.009042]
[1724029828908,2.03857065,58448.0,58447.0,0.009042]
[1724029829109,2.04057065,58448.0,58447.0,0.009042]
[1724029829319,2.13404329,58448.0,58447.0,0.009042]
[1724029829524,2.20912519,58448.0,58447.0,0.009042]
[1724029829742,2.20812519,58448.0,58447.0,0.009042]
[1724029829932,2.20912519,58448.0,58447.0,0.009042]
[1724029830385,2.72440519,58448.0,58447.0,0.009042]
[1724029830650,2.72640519,58448.0,58447.0,0.009042]
[1724029830856,2.72140519,58448.0,58447.0,0.009042]
[1724029831075,2.72240519,58448.0,58447.0,0.009042]
[1724029831299,2.96393419,58448.0,58447.0,1e-06]
[1724029831715,2.96593419,58448.0,58447.0,1e-06]
[1724029831923,2.97546709,58448.0,58447.0,1e-06]
[1724029832571,3.06785044,58448.0,58447.0,1e-06]
[1724029833759,3.06785044,58448.0,58446.0,0.009031]
[1724029833760,1.561964,58447.0,58446.0,1e-06]
[1724029833963,1.561964,58447.0,58429.0,0.009042]
[1724029833964,0.359403,58430.0,58429.0,0.009042]
[1724029834171,1.05266184,58430.0,58429.0,0.009042]
[1724029834373,1.42462956,58430.0,58429.0,0.009042]
[1724029835168,1.38212926,58430.0,58429.0,0.009042]
[1724029836596,0.119809,58426.0,58425.0,7.61e-06]
[1724029836808,0.53098254,58426.0,58425.0,7.61e-06]
[1724029837019,0.89556044,58426.0,58425.0,7.61e-06]
[1724029837238,0.80296441,58426.0,58425.0,7.61e-06]
[1724029837467,1.60172141,58426.0,58425.0,7.61e-06]
[1724029837685,2.28520141,58426.0,58425.0,7.61e-06]
[1724029838849,2.29554981,58426.0,58425.0,7.61e-06]
[1724029839261,2.53516881,58426.0,58425.0,7.61e-06]
[1724029839464,2.70672335,58426.0,58425.0,7.61e-06]
[1724029839816,1.078542,58412.0,58411.0,0.0009031]
[1724029840073,1.56629654,58412.0,58411.0,0.0009031]
[1724029840282,1.57587242,58412.0,58411.0,0.0009031]
[1724029841620,1.6935523,58412.0,58411.0,0.0009031]
[1724029842842,1.57587242,58412.0,58411.0,0.0009031]
[1724029850196,0.54064442,58412.0,58411.0,0.0793031]
[1724029850445,0.00957588,58412.0,58411.0,0.1438031]
[1724029850634,0.00957588,58412.0,58411.0,0.2636431]
[1724029850848,0.119828,58417.0,58413.0,0.1429]
[1724029851051,0.17155454,58418.0,58416.0,0.1429]
[1724029851212,0.11983,58416.0,58415.0,0.1429]
[1724029851420,0.35949,58416.0,58415.0,0.1429]
[1724029852327,1.01036454,58416.0,58415.0,0.1429]
[1724029852932,1.03336454,58416.0,58415.0,0.1429]
[1724029853739,0.79370454,58416.0,58415.0,0.1429]
[1724029853968,0.11983,58416.0,58415.0,0.1429]
[1724029854140,0.4747,58422.0,58416.0,0.082]
[1724029854341,0.119827,58418.0,58416.0,0.082]
[1724029854569,0.29138154,58418.0,58416.0,0.082]
[1724029854772,0.119827,58418.0,58417.0,0.1431]
[1724029854970,0.239639,58422.0,58419.0,0.082]
[1724029855144,0.119821,58420.0,58419.0,0.082]
[1724029855349,0.80032797,58420.0,58419.0,0.082]
[1724029855574,0.77066154,58420.0,58419.0,0.082]
[1724029855977,1.01030454,58420.0,58419.0,0.082]
[1724029856177,0.17155454,58420.0,58415.0,0.0775]
[1724029856376,0.59915,58416.0,58415.0,0.0775]
[1724029856584,0.119838,58412.0,58411.0,0.0009031]
[1724029856783,0.83226019,58412.0,58411.0,0.0009031]
[1724029857126,1.03342054,58412.0,58411.0,0.0009031]
[1724029857958,0.79374454,58412.0,58411.0,0.1404031]
[1724029858167,0.77074454,58412.0,58411.0,0.1404031]
[1724029858924,0.78002421,58412.0,58411.0,0.1404031]
[1724029859529,0.60846967,58412.0,58411.0,1.6404031]
[1724029860338,0.12911767,58412.0,58411.0,1.6404031]
[1724029860677,0.36879367,58412.0,58411.0,1.6404031]
[1724029861289,0.36879367,58412.0,58411.0,0.1404031]
[1724029861290,0.78002421,58412.0,58411.0,0.1404031]
[1724029861680,1.01970021,58412.0,58411.0,0.1404031]
[1724029862649,0.78002421,58412.0,58411.0,0.1404031]
[1724029862971,0.36879367,58412.0,58411.0,0.1404031]
[1724029864604,0.60846967,58412.0,58411.0,0.1404031]
[1724029864801,0.36879367,58412.0,58411.0,0.1404031]
[1724029866237,0.60846967,58412.0,58411.0,0.1404031]
[1724029866436,0.78002421,58412.0,58411.0,0.1404031]
[1724029867449,0.88199423,58412.0,58411.0,0.1404031]